bitfinex/quotes_BTCUSD_20240918
["timestamp","ask_amount","ask_price","bid_price","bid_amount"]
[1726688677691,0.016644,60480.0,60475.0,1.70350348]
[1726688677927,0.018644,60480.0,60475.0,1.70350348]
[1726688678145,0.018644,60480.0,60475.0,2.04821848]
[1726688678521,0.016644,60483.0,60475.0,2.55101906]
[1726688678755,0.016644,60490.0,60475.0,2.62753506]
[1726688678994,0.046644,60488.0,60475.0,2.23430406]
[1726688679230,0.002,60484.0,60475.0,2.22030406]
[1726688679475,0.046644,60480.0,60475.0,0.674172]
[1726688679709,0.0226114,60476.0,60475.0,0.589872]
[1726688679938,0.0226114,60476.0,60475.0,0.906587]
[1726688680168,0.0226114,60476.0,60475.0,0.920587]
[1726688680403,0.0226114,60476.0,60475.0,0.510072]
[1726688680635,0.0526114,60476.0,60475.0,0.510072]
[1726688680889,0.0039674,60476.0,60475.0,1.53940348]
[1726688681384,0.0039674,60476.0,60475.0,1.87996887]
[1726688681621,0.0039674,60476.0,60475.0,1.86596887]
[1726688681859,0.0039674,60476.0,60475.0,1.53943539]
[1726688682107,0.0059674,60476.0,60475.0,1.52543539]
[1726688682364,0.0059674,60476.0,60467.0,0.0165379]
[1726688682365,0.0059674,60476.0,60469.0,0.43556281]
[1726688682612,0.0059674,60476.0,60437.0,0.001644]
[1726688682613,0.5486744,60476.0,60475.0,0.014]
[1726688682851,0.2179654,60476.0,60475.0,0.014]
[1726688683081,0.2179654,60476.0,60475.0,0.028]
[1726688683310,0.2179654,60476.0,60467.0,0.330757]
[1726688683311,0.002,60468.0,60467.0,0.330757]
[1726688683561,0.018644,60470.0,60469.0,0.179373]
[1726688683791,0.002,60470.0,60469.0,0.51012]
[1726688684022,0.002,60470.0,60469.0,0.840867]
[1726688684023,0.018644,60470.0,60469.0,0.840867]
[1726688684259,0.018644,60470.0,60469.0,0.9249537]
[1726688684484,0.016644,60474.0,60473.0,0.165363]
[1726688684721,0.016644,60474.0,60469.0,0.36114037]
[1726688684722,0.03,60470.0,60469.0,0.0840867]
[1726688684966,0.03,60470.0,60433.0,0.07375464]
[1726688684967,0.002,60466.0,60465.0,0.265384]
[1726688685200,0.018644,60467.0,60466.0,0.165382]
[1726688685425,0.018644,60467.0,60466.0,0.94638675]
[1726688685426,0.016644,60467.0,60466.0,0.94638675]
[1726688685650,0.002,60468.0,60467.0,0.926895]
[1726688685897,0.018644,60468.0,60467.0,1.257653]
[1726688686873,0.018644,60468.0,60467.0,0.926895]
[1726688687136,0.002,60472.0,60470.0,0.1]
[1726688687378,0.0039674,60476.0,60475.0,1.257502]
[1726688687638,0.0039674,60476.0,60475.0,1.44355567]
[1726688688568,0.0039674,60476.0,60475.0,2.71975567]
[1726688688847,0.0039674,60476.0,60475.0,2.88284125]
[1726688689311,0.0039674,60476.0,60475.0,1.77955725]
[1726688689782,0.0039674,60476.0,60475.0,1.76555725]
[1726688690029,0.0039674,60476.0,60475.0,3.02775725]
[1726688690501,0.0039674,60476.0,60475.0,2.97448932]
[1726688691187,0.0039674,60476.0,60475.0,2.99429332]
[1726688691432,0.0039674,60476.0,60475.0,3.00764932]
[1726688691661,0.0039674,60476.0,60475.0,3.0837774]
[1726688691899,0.0039674,60476.0,60475.0,3.05164932]
[1726688692131,0.0039674,60476.0,60475.0,3.38236432]
[1726688692386,0.0039674,60476.0,60475.0,3.71307932]
[1726688692630,0.0039674,60476.0,60475.0,3.69907932]
[1726688692867,0.0039674,60476.0,60475.0,3.35236432]
[1726688693087,0.0039674,60476.0,60475.0,3.33836432]
[1726688693558,0.0039674,60476.0,60475.0,3.30584832]
[1726688693804,0.0526114,60476.0,60475.0,0.510072]
[1726688694103,0.0039674,60476.0,60475.0,1.66527067]
[1726688694329,0.0039674,60476.0,60475.0,1.86151625]
[1726688695006,0.0039674,60476.0,60475.0,1.96535625]
[1726688695237,0.0047904,60476.0,60475.0,1.44858758]
[1726688695501,0.0047904,60476.0,60475.0,1.42058758]
[1726688695733,0.0534344,60476.0,60475.0,0.98987258]
[1726688695987,0.0534344,60476.0,60475.0,0.34244258]
[1726688696215,0.0534344,60476.0,60475.0,0.165357]
[1726688696436,0.0534344,60476.0,60471.0,0.330735]
[1726688696437,0.048644,60472.0,60471.0,0.82684]
[1726688697649,0.0047904,60476.0,60451.0,1.3444]
[1726688697650,0.046644,60460.0,60451.0,1.3444]
[1726688697888,0.002,60473.0,60447.0,0.0909]
[1726688697889,0.002,60454.0,60453.0,0.496252]
[1726688698131,0.002,60451.0,60449.0,0.165426]
[1726688698362,0.002,60451.0,60447.0,0.165433]
[1726688698363,0.167423,60451.0,60447.0,0.165433]
[1726688698591,0.046644,60444.0,60443.0,0.165445]
[1726688698823,0.330827,60455.0,60437.0,0.001644]
[1726688698824,0.048644,60438.0,60437.0,0.001644]
[1726688699092,0.54915552,60438.0,60437.0,0.001644]
[1726688699361,0.875936,60438.0,60437.0,0.001644]
[1726688699596,0.545019,60438.0,60437.0,0.001644]
[1726688699831,0.379561,60438.0,60437.0,0.001644]
[1726688700080,0.545019,60438.0,60437.0,0.001644]
[1726688700375,0.048644,60438.0,60437.0,0.001644]
[1726688700582,0.99234242,60449.0,60429.0,0.001646]
[1726688700583,0.545085,60430.0,60429.0,0.001646]
[1726688700825,0.545085,60430.0,60413.0,0.0039674]
[1726688700826,0.878184,60420.0,60413.0,0.0039674]
[1726688701059,0.737217,60414.0,60413.0,0.0039674]
[1726688701301,1.83487781,60414.0,60413.0,0.0039674]
[1726688701542,2.18892681,60414.0,60413.0,0.0039674]
[1726688701780,0.048644,60406.0,60402.0,0.0032332]
[1726688702252,0.545282,60406.0,60402.0,0.0032332]
[1726688702518,1.207466,60406.0,60402.0,0.0032332]
[1726688702778,0.545282,60406.0,60402.0,0.0032332]
[1726688703015,1.237466,60406.0,60402.0,0.0032332]
[1726688703268,0.575282,60406.0,60402.0,0.0032332]
[1726688703490,0.545282,60406.0,60405.0,0.008644]
[1726688703716,0.545282,60406.0,60405.0,0.001644]
[1726688704212,0.545282,60406.0,60405.0,0.167193]
[1726688704213,0.048644,60406.0,60405.0,0.167193]
[1726688704446,0.048644,60406.0,60405.0,0.05196282]
[1726688704685,0.244193,60405.0,60402.0,0.0032332]
[1726688704926,0.577307,60403.0,60402.0,0.0032332]
[1726688705160,0.547472,60383.0,60382.0,0.000821]
[1726688705404,0.545472,60383.0,60382.0,0.000821]
[1726688705894,0.048644,60383.0,60382.0,0.000821]
[1726688706138,0.002,60385.0,60382.0,0.332045]
[1726688706374,0.165583,60393.0,60386.0,0.828005]
[1726688706375,0.002,60387.0,60386.0,0.828005]
[1726688706612,0.002,60389.0,60388.0,0.165594]
[1726688706881,0.048644,60384.0,60383.0,0.0332045]
[1726688707118,0.048644,60384.0,60382.0,0.166433]
[1726688707119,0.046644,60383.0,60382.0,0.166433]
[1726688707363,0.046644,60383.0,60382.0,0.000821]
[1726688707364,0.048644,60383.0,60382.0,0.000821]
[1726688707600,0.048644,60383.0,60382.0,0.5309458]
[1726688707601,0.002,60383.0,60382.0,0.5309458]
[1726688707830,0.002,60388.0,60384.0,0.331213]
[1726688708067,0.046644,60383.0,60382.0,0.000821]
[1726688708314,0.046644,60383.0,60382.0,0.499657]
[1726688708563,0.002,60388.0,60385.0,0.662416]
[1726688708825,0.046644,60400.0,60399.0,0.496696]
[1726688709069,0.046644,60400.0,60399.0,0.165565]
[1726688709537,0.046644,60400.0,60399.0,0.496696]
[1726688709538,0.048644,60400.0,60399.0,0.496696]
[1726688709539,0.046644,60393.0,60390.0,0.331179]
[1726688709794,0.046644,60393.0,60392.0,0.827922]
[1726688710042,0.046644,60400.0,60399.0,0.331131]
[1726688710295,0.02598497,60402.0,60401.0,0.16556]
[1726688710549,0.04462897,60402.0,60401.0,0.9278]
[1726688710848,0.001646,60413.0,60391.0,0.08286927]
[1726688710849,0.002,60394.0,60391.0,0.08286927]
[1726688711066,0.002,60394.0,60376.0,0.0347884]
[1726688711067,0.046644,60383.0,60376.0,0.0047884]
[1726688711321,0.545472,60383.0,60376.0,0.0047884]
[1726688711573,0.048644,60383.0,60379.0,0.165619]
[1726688711834,0.046644,60383.0,60382.0,0.0175471]
[1726688712084,0.06,60402.0,60382.0,0.0175471]
[1726688712085,0.002,60387.0,60382.0,0.0175471]
[1726688712331,0.048644,60387.0,60386.0,0.165601]
[1726688712597,0.048644,60387.0,60383.0,0.496826]
[1726688712860,0.048644,60387.0,60382.0,0.000821]
[1726688712861,0.048644,60383.0,60382.0,0.000821]
[1726688713159,0.545472,60383.0,60382.0,0.000821]
[1726688713351,0.048644,60383.0,60382.0,0.000821]
[1726688713595,0.048644,60383.0,60382.0,0.0009489]
[1726688713596,0.876691,60383.0,60382.0,0.0009489]
[1726688713854,0.99477417,60383.0,60382.0,0.0009489]
[1726688714094,0.43556281,60386.0,60377.0,0.000821]
[1726688714095,0.876759,60378.0,60377.0,0.000821]
[1726688714342,1.208005,60378.0,60377.0,0.000821]
[1726688714831,0.876759,60378.0,60377.0,0.000821]
[1726688715290,0.876759,60378.0,60376.0,0.0047935]
[1726688715291,0.876771,60377.0,60376.0,0.0047935]
[1726688715519,1.238022,60377.0,60376.0,0.0047935]
[1726688716007,1.238022,60377.0,60368.0,0.001646]
[1726688716008,0.874881,60369.0,60368.0,0.001646]
[1726688716244,1.238176,60369.0,60368.0,0.001646]
[1726688716473,0.876881,60369.0,60368.0,0.001646]
[1726688717243,0.06,60377.0,60368.0,0.332947]
[1726688717244,0.016644,60377.0,60368.0,0.332947]
[1726688717476,0.1055,60394.0,60377.0,0.004]
[1726688717477,0.002,60391.0,60377.0,0.004]
[1726688717706,0.002,60391.0,60383.0,0.265609]
[1726688717707,0.046644,60384.0,60383.0,0.265609]
[1726688717942,0.016644,60388.0,60386.0,0.331202]
[1726688718180,0.02598729,60393.0,60384.0,0.331213]
[1726688718181,0.046644,60386.0,60384.0,0.331213]
[1726688718411,0.002,60391.0,60384.0,0.331213]
[1726688718412,0.046644,60385.0,60384.0,0.496819]
[1726688718639,0.046644,60385.0,60382.0,0.000823]
[1726688718863,0.048644,60383.0,60382.0,0.828882]
[1726688719094,0.048644,60383.0,60382.0,0.000823]
[1726688719859,0.333172,60392.0,60383.0,0.496828]
[1726688719860,0.002,60384.0,60383.0,0.496828]
[1726688720096,0.046644,60388.0,60387.0,0.165598]
[1726688720329,0.046644,60388.0,60383.0,0.09332138]
[1726688720330,0.048644,60386.0,60385.0,0.165602]
[1726688720561,0.048644,60386.0,60385.0,0.49681]
[1726688720811,0.048644,60386.0,60385.0,0.165602]
[1726688720812,0.046644,60386.0,60385.0,0.165602]
[1726688721039,0.048644,60383.0,60382.0,0.000823]
[1726688721289,0.048644,60383.0,60382.0,0.497659]
[1726688721554,0.048644,60383.0,60382.0,0.000823]
[1726688721813,0.545472,60383.0,60382.0,0.00549624]
[1726688722047,0.545472,60383.0,60382.0,0.000823]
[1726688722048,0.048644,60383.0,60382.0,0.000823]
[1726688722277,0.048644,60383.0,60382.0,0.00549624]
[1726688722278,0.07463154,60383.0,60382.0,0.00549624]
[1726688722510,0.07463154,60383.0,60382.0,0.90035386]
[1726688722511,0.07263154,60383.0,60382.0,0.90035386]
[1726688722738,0.02598754,60383.0,60382.0,0.90035386]
[1726688722980,0.30841635,60409.0,60385.0,0.331207]
[1726688722981,0.03,60400.0,60385.0,0.331207]
[1726688723244,0.046644,60404.0,60397.0,0.331142]
[1726688723477,0.001646,60413.0,60397.0,0.331142]
[1726688723478,1.01933266,60403.0,60402.0,0.827785]
[1726688723712,0.02597985,60403.0,60402.0,1.158899]
[1726688723950,0.046644,60405.0,60404.0,0.496654]
[1726688724195,0.046644,60405.0,60404.0,0.165551]
[1726688724455,0.002,60407.0,60397.0,0.165571]
[1726688724456,0.046644,60398.0,60397.0,0.165571]
[1726688724751,0.03,60404.0,60403.0,0.165554]
[1726688725006,0.001646,60413.0,60404.0,0.10331085]
[1726688725235,0.04829,60413.0,60412.0,0.82765]
[1726688725756,0.031646,60413.0,60412.0,0.82765]
[1726688725988,0.031646,60413.0,60412.0,1.423775]
[1726688725989,0.001646,60413.0,60412.0,1.423775]
[1726688726225,0.001646,60413.0,60412.0,1.58682867]
[1726688726461,0.001646,60413.0,60412.0,1.64298867]
[1726688727204,0.0039725,60421.0,60420.0,0.92754]
[1726688727451,0.0039725,60421.0,60420.0,1.71711881]
[1726688727732,0.0039725,60421.0,60412.0,0.165065]
[1726688727733,0.046644,60418.0,60417.0,0.165516]
[1726688728025,0.0039725,60421.0,60420.0,0.963896]
[1726688728285,0.0039725,60440.0,60431.0,0.1]
[1726688728286,0.046644,60432.0,60431.0,0.1]
[1726688728523,0.07461024,60432.0,60431.0,0.596432]
[1726688728779,0.07461024,60432.0,60431.0,0.6560752]
[1726688729017,0.07261024,60432.0,60420.0,0.28125367]
[1726688729288,0.04261024,60432.0,60431.0,0.265477]
[1726688729536,0.07261024,60432.0,60431.0,0.596432]
[1726688729809,0.02596624,60432.0,60431.0,1.75235067]
[1726688730076,0.02596624,60432.0,60431.0,2.31590725]
[1726688730296,0.0039725,60440.0,60439.0,1.258192]
[1726688730564,0.0506165,60440.0,60439.0,0.82728]
[1726688730836,0.046644,60435.0,60434.0,0.496406]
[1726688731078,0.046644,60435.0,60431.0,0.014]
[1726688731079,0.046644,60434.0,60433.0,0.165471]
[1726688731349,0.046644,60434.0,60430.0,0.330956]
[1726688731350,0.048644,60431.0,60430.0,0.165479]
[1726688731594,0.048644,60431.0,60400.0,0.0819]
[1726688731595,0.046644,60412.0,60400.0,0.0819]
[1726688731833,0.002,60415.0,60395.0,0.094]
[1726688731834,0.018644,60404.0,60403.0,0.496663]
[1726688732082,0.048644,60404.0,60403.0,0.32863958]
[1726688732307,0.032,60421.0,60397.0,0.331141]
[1726688732308,0.046644,60406.0,60397.0,0.331141]
[1726688732549,0.002,60408.0,60406.0,0.496638]
[1726688732550,0.046644,60407.0,60406.0,0.496638]
[1726688732789,0.048644,60407.0,60406.0,0.165546]
[1726688733021,0.046644,60414.0,60406.0,0.17960827]
[1726688733255,0.02597439,60419.0,60418.0,0.827567]
[1726688733256,0.07261839,60419.0,60418.0,0.827567]
[1726688733486,0.07261839,60419.0,60409.0,0.331076]
[1726688733487,0.048644,60424.0,60423.0,0.496498]
[1726688733716,0.048644,60425.0,60424.0,0.827485]
[1726688733983,0.048644,60425.0,60424.0,0.9102335]
[1726688734228,0.018644,60437.0,60431.0,1.158342]
[1726688734482,0.032,60455.0,60431.0,1.158342]
[1726688734483,0.002,60449.0,60431.0,1.77535067]
[1726688734749,0.046644,60450.0,60431.0,1.77535067]
[1726688734750,0.002,60442.0,60431.0,1.75235067]
[1726688734980,0.046644,60444.0,60431.0,1.93843625]
[1726688735440,0.046644,60444.0,60431.0,1.95243625]
[1726688735935,0.0039725,60458.0,60431.0,0.014]
[1726688735936,0.050288,60432.0,60431.0,0.014]
[1726688736406,0.55085036,60432.0,60431.0,0.014]
[1726688736868,0.55085036,60432.0,60420.0,0.331016]
[1726688736869,0.002,60421.0,60420.0,0.331016]
[1726688737098,0.002,60421.0,60420.0,0.496524]
[1726688737334,0.03,60422.0,60421.0,0.496515]
[1726688737575,0.046644,60428.0,60427.0,0.165488]
[1726688737843,0.001644,60432.0,60418.0,0.1]
[1726688737844,0.046644,60424.0,60418.0,0.1]
[1726688738079,0.046644,60419.0,60418.0,0.265513]
[1726688738811,0.046644,60419.0,60418.0,0.165513]
[1726688739054,0.046644,60412.0,60406.0,0.0165546]
[1726688739291,0.330992,60425.0,60388.0,0.013356]
[1726688739292,0.048644,60408.0,60407.0,0.165543]
[1726688739532,0.002,60400.0,60399.0,0.165565]
[1726688739974,0.002,60400.0,60382.0,0.030823]
[1726688739975,0.046644,60394.0,60393.0,0.165582]
[1726688740210,0.046644,60394.0,60382.0,0.000823]
[1726688740211,0.046644,60398.0,60397.0,0.165571]
[1726688740467,0.048644,60404.0,60403.0,0.165554]
[1726688741422,0.046644,60407.0,60406.0,0.165546]
[1726688741692,0.331014,60421.0,60397.0,0.0165571]
[1726688741693,0.048644,60411.0,60410.0,0.496606]
[1726688741935,0.03,60406.0,60405.0,0.1]
[1726688742177,0.046644,60407.0,60406.0,0.496638]
[1726688742426,0.016644,60407.0,60406.0,0.8882938]
[1726688742679,0.016644,60408.0,60407.0,0.827717]
[1726688742917,0.24821492,60420.0,60415.0,0.331043]
[1726688742918,0.046644,60418.0,60415.0,0.331043]
[1726688743155,0.046644,60418.0,60411.0,0.1]
[1726688743156,0.046644,60408.0,60406.0,0.331092]
[1726688743407,0.046644,60408.0,60397.0,0.0165571]
[1726688743408,0.046644,60403.0,60397.0,0.0165571]
[1726688743650,0.046644,60403.0,60382.0,0.030823]
[1726688743651,0.331053,60414.0,60398.0,0.165566]
[1726688743652,0.046644,60399.0,60398.0,0.165566]
[1726688743888,0.046644,60392.0,60388.0,0.097]
[1726688744120,0.046644,60392.0,60382.0,0.000823]
[1726688744121,0.046644,60388.0,60387.0,0.165598]
[1726688744374,0.046644,60388.0,60387.0,0.827992]
[1726688744861,0.048644,60402.0,60401.0,0.49668]
[1726688745098,0.24821492,60408.0,60407.0,0.165543]
[1726688745359,0.046644,60418.0,60417.0,0.165516]
[1726688745592,0.046644,60418.0,60396.0,0.093]
[1726688745593,0.046644,60407.0,60405.0,0.331098]
[1726688745837,0.002,60411.0,60396.0,0.093]
[1726688745838,0.046644,60423.0,60422.0,0.165502]
[1726688746068,0.046644,60418.0,60407.0,0.123]
[1726688746309,0.046644,60418.0,60417.0,0.165516]
[1726688746545,0.046644,60411.0,60410.0,0.265535]
[1726688746801,0.331007,60422.0,60410.0,0.265535]
[1726688746802,0.048644,60422.0,60416.0,0.331032]
[1726688747053,0.046644,60417.0,60416.0,0.596557]
[1726688747286,0.046644,60417.0,60416.0,0.9872507]
[1726688747564,0.032,60422.0,60421.0,0.33101]
[1726688747801,0.002,60425.0,60417.0,0.007]
[1726688748063,0.001644,60432.0,60424.0,0.43556281]
[1726688748280,0.001644,60432.0,60431.0,1.158342]
[1726688748546,0.001644,60432.0,60431.0,2.24091348]
[1726688748787,0.001644,60432.0,60431.0,2.33461348]
[1726688749020,0.001644,60432.0,60431.0,2.30461348]
[1726688749516,0.0039725,60440.0,60439.0,1.489104]
[1726688749755,0.0039725,60440.0,60439.0,2.37341472]
[1726688750006,0.0039725,60440.0,60439.0,1.08997424]
[1726688750474,0.0039725,60440.0,60434.0,0.496408]
[1726688750475,0.048644,60435.0,60434.0,0.496408]
[1726688750711,0.046644,60432.0,60431.0,0.344955]
[1726688750941,0.046644,60432.0,60431.0,0.496432]
[1726688751195,0.002,60435.0,60425.0,0.04585628]
[1726688751196,0.046644,60426.0,60425.0,0.04585628]
[1726688751486,0.0039725,60440.0,60422.0,0.24823957]
[1726688751487,0.046644,60427.0,60422.0,0.24823957]
[1726688751724,0.048644,60429.0,60428.0,0.496458]
[1726688751963,0.046644,60429.0,60428.0,0.82743]
[1726688752215,0.046644,60429.0,60411.0,0.331064]
[1726688752216,0.002,60412.0,60411.0,0.331064]
[1726688752475,0.002,60412.0,60411.0,0.827661]
[1726688752703,0.002,60412.0,60401.0,0.0763]
[1726688752704,0.002,60407.0,60401.0,0.0763]
[1726688752940,0.002,60408.0,60407.0,0.827717]
[1726688753223,0.002,60408.0,60402.0,1.34114098]
[1726688753224,0.048644,60406.0,60405.0,0.165547]
[1726688753458,0.00413841,60423.0,60405.0,0.165547]
[1726688753459,0.016644,60412.0,60405.0,0.16305367]
[1726688753682,0.016644,60412.0,60411.0,0.839662]
[1726688753683,0.048644,60412.0,60411.0,0.839662]
[1726688753919,0.046644,60412.0,60411.0,0.93993357]
[1726688754166,0.99290898,60424.0,60411.0,0.93993357]
[1726688754167,0.048644,60418.0,60417.0,0.165516]
[1726688754636,0.99290898,60424.0,60411.0,0.10027157]
[1726688754637,0.048644,60412.0,60411.0,0.10027157]
[1726688754873,0.03,60427.0,60403.0,0.496662]
[1726688754874,0.002,60404.0,60403.0,0.496662]
[1726688755132,0.002,60404.0,60403.0,0.5480402]
[1726688755829,0.002,60404.0,60399.0,0.331127]
[1726688755830,0.048644,60403.0,60402.0,0.513791]
[1726688756069,0.048644,60403.0,60402.0,0.182677]
[1726688756312,0.046644,60403.0,60402.0,0.844905]
[1726688757040,0.048644,60406.0,60405.0,0.496647]
[1726688757268,0.048644,60406.0,60405.0,0.9122331]
[1726688757504,0.048644,60406.0,60405.0,1.3433311]
[1726688757505,0.002,60406.0,60405.0,1.3433311]
[1726688757765,0.048644,60411.0,60410.0,0.165535]
[1726688757999,0.002,60403.0,60402.0,0.01712]
[1726688758227,0.048644,60403.0,60402.0,0.513791]
[1726688758454,0.048644,60403.0,60397.0,0.331141]
[1726688758701,0.24833409,60415.0,60399.0,0.1]
[1726688758702,0.048644,60400.0,60399.0,0.1]
[1726688759181,0.018644,60394.0,60393.0,0.496743]
[1726688759427,0.018644,60394.0,60393.0,0.5877946]
[1726688759428,0.016644,60394.0,60393.0,0.5877946]
[1726688759657,0.016644,60394.0,60393.0,0.9189586]
[1726688759658,0.018644,60394.0,60393.0,0.9189586]
[1726688759900,0.046644,60403.0,60402.0,0.165557]
[1726688760132,0.048644,60404.0,60403.0,0.496663]
[1726688760407,0.046644,60413.0,60412.0,0.33106]
[1726688760635,0.046644,60413.0,60412.0,0.16553]
[1726688760921,0.046644,60405.0,60402.0,0.0165557]
[1726688761169,0.0041381,60421.0,60402.0,0.8443407]
[1726688761170,0.046644,60403.0,60402.0,0.8443407]
[1726688761409,0.046644,60403.0,60402.0,0.8563407]
[1726688761641,0.046644,60405.0,60402.0,0.0285557]
[1726688761868,0.29497809,60403.0,60402.0,0.1941117]
[1726688762099,0.016644,60403.0,60402.0,0.1941117]
[1726688762337,0.046644,60412.0,60406.0,0.1]
[1726688762575,0.330986,60426.0,60406.0,0.1]
[1726688762576,0.046644,60427.0,60425.0,0.330988]
[1726688762812,0.001642,60431.0,60427.0,0.165488]
[1726688762813,0.002,60428.0,60427.0,0.165488]
[1726688763069,0.001642,60431.0,60430.0,0.496441]
[1726688763303,0.001642,60431.0,60430.0,1.612324]
[1726688763555,0.050286,60431.0,60430.0,0.827402]
[1726688764302,0.050286,60431.0,60430.0,0.16548]
[1726688764557,0.050286,60431.0,60422.0,0.1]
[1726688764558,0.046644,60414.0,60407.0,0.0806]
[1726688764827,0.046644,60412.0,60411.0,0.165532]
[1726688765092,0.046644,60412.0,60397.0,0.013356]
[1726688765093,0.046644,60401.0,60400.0,0.496687]
[1726688765336,0.03413865,60424.0,60396.0,0.11436]
[1726688765337,0.002,60404.0,60396.0,0.0812]
[1726688765584,0.002,60404.0,60403.0,0.496663]
[1726688765859,0.002,60404.0,60403.0,0.165554]
[1726688765860,0.016644,60404.0,60403.0,0.165554]
[1726688766095,0.016644,60404.0,60403.0,0.496663]
[1726688766333,0.016644,60404.0,60403.0,0.827772]
[1726688766617,0.002,60414.0,60413.0,0.496581]
[1726688766849,0.046644,60414.0,60413.0,0.927635]
[1726688767127,0.046644,60405.0,60403.0,0.014]
[1726688767378,0.333041,60416.0,60392.0,0.331168]
[1726688767379,0.377747,60404.0,60392.0,0.331168]
[1726688767624,0.046644,60393.0,60392.0,0.165584]
[1726688768136,0.046644,60393.0,60385.0,0.0764]
[1726688768438,0.046644,60393.0,60386.0,0.331201]
[1726688768439,0.002,60390.0,60386.0,0.331201]
[1726688768686,0.002,60390.0,60389.0,0.827965]
[1726688768944,0.002,60390.0,60389.0,0.927965]
[1726688769270,0.016644,60396.0,60390.0,0.1]
[1726688769506,0.016644,60396.0,60391.0,0.00331144]
[1726688769507,0.046644,60396.0,60391.0,0.00331144]
[1726688769741,0.046644,60392.0,60390.0,0.1]
[1726688769969,0.046644,60392.0,60385.0,0.0764]
[1726688769970,0.046644,60389.0,60382.0,0.000823]
[1726688770209,0.048644,60383.0,60382.0,0.000823]
[1726688771038,0.06,60399.0,60382.0,0.000823]
[1726688771039,0.048644,60397.0,60382.0,0.095923]
[1726688771270,0.002,60386.0,60382.0,0.095923]
[1726688771532,0.046644,60389.0,60382.0,0.095923]
[1726688771533,0.046644,60389.0,60383.0,0.1]
[1726688771780,0.016644,60396.0,60389.0,0.123]
[1726688771997,0.016644,60396.0,60389.0,0.1]
[1726688772223,0.03,60416.0,60389.0,0.1]
[1726688772224,0.002,60390.0,60389.0,0.1]
[1726688772690,0.048644,60390.0,60389.0,0.265593]
[1726688772916,0.048644,60390.0,60389.0,0.596779]
[1726688773184,0.048644,60390.0,60389.0,0.9876429]
[1726688773410,0.046644,60390.0,60389.0,1.3188289]
[1726688773646,0.048644,60390.0,60389.0,1.0016429]
[1726688773906,0.048644,60390.0,60389.0,0.9876429]
[1726688774408,0.214253,60383.0,60382.0,0.000823]
[1726688774664,0.046644,60384.0,60382.0,0.828883]
[1726688774892,0.99314728,60407.0,60397.0,0.331142]
[1726688774893,0.046644,60398.0,60397.0,0.331142]
[1726688775150,0.04895365,60417.0,60383.0,1.15620095]
[1726688775151,0.018644,60395.0,60394.0,0.165579]
[1726688775357,0.57939115,60413.0,60404.0,0.165551]
[1726688775358,0.002,60405.0,60404.0,0.165551]
[1726688775619,0.046644,60405.0,60404.0,0.827757]
[1726688775866,0.048644,60403.0,60402.0,0.165555]
[1726688776098,0.048644,60403.0,60402.0,0.496669]
[1726688776577,0.046644,60403.0,60402.0,0.827783]
[1726688776827,0.68389896,60421.0,60402.0,0.49416767]
[1726688776828,0.046644,60410.0,60402.0,0.49416767]
[1726688777175,0.046644,60410.0,60409.0,0.496614]
[1726688777429,0.002,60411.0,60410.0,0.827677]
[1726688777940,0.046644,60411.0,60410.0,0.662142]
[1726688778300,0.046644,60411.0,60410.0,0.9269985]
[1726688778491,0.331011,60421.0,60410.0,0.9269985]
[1726688778492,0.046644,60417.0,60416.0,0.827595]
[1726688778759,0.046644,60405.0,60399.0,0.33113]
[1726688778998,0.046644,60405.0,60404.0,1.25877126]
[1726688778999,0.048644,60405.0,60404.0,1.25877126]
[1726688779258,0.016644,60394.0,60387.0,0.0962]
[1726688779526,0.016644,60394.0,60378.0,0.43898521]
[1726688779527,0.048644,60383.0,60378.0,0.0034224]
[1726688779799,1.20791,60383.0,60378.0,0.0034224]
[1726688780093,0.048644,60383.0,60378.0,0.0034224]
[1726688780331,0.002,60397.0,60378.0,0.0034224]
[1726688780332,0.046644,60387.0,60378.0,0.0034224]
[1726688780602,0.046644,60383.0,60382.0,0.497659]
[1726688780891,0.214253,60383.0,60382.0,0.000823]
[1726688781121,0.048644,60383.0,60382.0,0.000823]
[1726688781379,0.03,60394.0,60385.0,0.165604]
[1726688781380,0.046644,60386.0,60385.0,0.165604]
[1726688781608,0.046644,60386.0,60385.0,0.82802]
[1726688781609,0.016644,60386.0,60385.0,0.82802]
[1726688781843,0.016644,60386.0,60385.0,1.159228]
[1726688782088,0.99322126,60394.0,60382.0,0.44903344]
[1726688782089,0.048644,60383.0,60382.0,0.44903344]
[1726688782347,0.048644,60383.0,60382.0,0.51464544]
[1726688782348,0.018644,60383.0,60382.0,0.51464544]
[1726688782627,0.002,60399.0,60382.0,0.51464544]
[1726688782628,0.046644,60395.0,60394.0,0.165579]
[1726688782890,0.24841635,60402.0,60398.0,0.496704]
[1726688782891,0.046644,60399.0,60398.0,0.496704]
[1726688783209,0.046644,60399.0,60398.0,0.165568]
[1726688783210,0.048644,60399.0,60398.0,0.165568]
[1726688783589,0.048644,60399.0,60386.0,0.43556281]
[1726688783590,0.048644,60391.0,60390.0,0.165588]
[1726688783591,0.048644,60391.0,60382.0,0.19486311]
[1726688783592,0.046644,60387.0,60384.0,0.331213]
[1726688783786,0.165589,60391.0,60382.0,0.43183779]
[1726688783787,0.048644,60383.0,60382.0,0.43183779]
[1726688784150,0.047644,60383.0,60382.0,0.59744979]
[1726688784400,0.016644,60386.0,60385.0,0.496812]
[1726688784693,0.016644,60386.0,60385.0,0.82802]
[1726688784995,0.331125,60401.0,60394.0,0.331158]
[1726688784996,0.29506035,60399.0,60394.0,0.331158]
[1726688785287,0.29506035,60399.0,60389.0,0.1]
[1726688785288,0.29506035,60399.0,60398.0,0.82784]